fUST/lending_fUST_20240902
["ID","MTS","AMOUNT","RATE_DAILY","PERIOD"]
[336862207,1725220256016,-524.701115,0.0002542,7]
[336862208,1725220256030,-1000.0,0.00025424,2]
[336862209,1725220256040,-3530.40684816,0.00025469,3]
[336862210,1725220256050,-150.0,0.00025473,2]
[336862211,1725220256059,-1000.0,0.00025474,2]
[336862212,1725220256070,-2286.57,0.00025478,2]
[336862213,1725220256079,-736.46,0.00025478,2]
[336862214,1725220256089,-1658.39,0.00025478,2]
[336862215,1725220256101,-1034.98,0.00025478,2]
[336862216,1725220256111,-511.34820436,0.00025478,2]
[336862217,1725220256121,-828.02,0.00025478,2]
[336862218,1725220256131,-546.15,0.00025478,2]
[336862219,1725220256140,-7675.38,0.00025478,2]
[336862220,1725220256150,-1529.18,0.00025478,2]
[336862221,1725220256159,-678.33,0.00025478,2]
[336862222,1725220256169,-1741.29,0.00025478,2]
[336862223,1725220256179,-3271.16,0.00025478,2]
[336862224,1725220256188,-2206.77,0.00025478,2]
[336862225,1725220256198,-2327.32,0.00025478,2]
[336862226,1725220256207,-1374.59,0.00025478,2]
[336862227,1725220256217,-550.76,0.00025478,2]
[336862228,1725220256227,-504.98489087,0.00025479,2]
[336862229,1725220256236,-500.0,0.00025479,2]
[336862230,1725220256245,-500.0,0.00025479,2]
[336862231,1725220256255,-500.0,0.00025479,2]
[336862232,1725220256264,-827.6,0.00025479,2]
[336862233,1725220256274,-500.0,0.00025479,2]
[336862234,1725220256283,-500.59,0.00025479,2]
[336862235,1725220256293,-500.0,0.00025479,2]
[336862236,1725220256302,-500.0,0.00025479,2]
[336862237,1725220256311,-500.0,0.00025479,2]
[336862238,1725220256320,-500.0,0.00025479,2]
[336862239,1725220256329,-500.0,0.00025479,2]
[336862240,1725220256338,-500.0,0.00025479,2]
[336862241,1725220256347,-389.37457131,0.00025479,2]
[336862242,1725220256356,-1070.71,0.00025479,2]
[336862243,1725220256366,-583.3,0.00025479,2]
[336862244,1725220256375,-585.76,0.00025479,2]
[336862245,1725220256384,-500.0,0.00025479,2]
[336862246,1725220256394,-668.73,0.00025479,2]
[336862247,1725220256403,-500.0,0.00025479,2]
[336862248,1725220256413,-500.0,0.00025479,2]
[336862249,1725220256422,-500.0,0.00025479,2]
[336862250,1725220256431,-521.09,0.00025479,2]
[336862251,1725220256440,-500.0,0.00025479,2]
[336862252,1725220256558,-1573.85,0.00025479,2]
[336862253,1725220256591,-515.89,0.00025479,2]
[336862254,1725220256600,-500.0,0.00025479,2]
[336862255,1725220256609,-541.22,0.00025479,2]
[336862256,1725220256618,-500.0,0.00025479,2]
[336862257,1725220256628,-500.0,0.00025479,2]
[336862258,1725220256637,-1024.3,0.00025479,2]
[336862259,1725220256646,-500.0,0.00025479,2]
[336862260,1725220256656,-500.0,0.00025479,2]
[336862261,1725220256665,-776.53,0.00025479,2]
[336862262,1725220256675,-500.0,0.00025479,2]
[336862263,1725220256684,-597.29,0.00025479,2]
[336862264,1725220256695,-500.0,0.00025479,2]
[336862265,1725220256705,-755.54,0.00025479,2]
[336862266,1725220256714,-704.21,0.00025479,2]
[336862267,1725220256724,-500.0,0.00025479,2]
[336862268,1725220256733,-500.0,0.00025479,2]
[336862269,1725220256744,-500.0,0.00025479,2]
[336862270,1725220256753,-500.0,0.00025479,2]
[336862271,1725220256763,-888.83,0.00025479,2]
[336862272,1725220256773,-500.0,0.00025479,2]
[336862273,1725220256782,-500.0,0.00025479,2]
[336862274,1725220256791,-578.31,0.00025479,2]
[336862275,1725220256800,-500.0,0.00025479,2]
[336862276,1725220256809,-500.0,0.00025479,2]
[336862277,1725220256818,-765.48,0.00025479,2]
[336862278,1725220256827,-500.0,0.00025479,2]
[336862279,1725220256837,-500.0,0.00025479,2]
[336862280,1725220256845,-3499.16,0.00025479,2]
[336862281,1725220256854,-500.0,0.00025479,2]
[336862282,1725220256863,-500.0,0.00025479,2]
[336862283,1725220256873,-500.0,0.00025479,2]
[336862284,1725220256882,-500.0,0.00025479,2]
[336862285,1725220256892,-1189.99,0.00025479,2]
[336862286,1725220256902,-500.0,0.00025479,2]
[336862287,1725220256911,-500.0,0.00025479,2]
[336862288,1725220256920,-527.91,0.00025479,2]
[336862289,1725220256929,-500.0,0.00025479,2]
[336862290,1725220256938,-500.0,0.00025479,2]
[336862291,1725220256947,-500.0,0.00025479,2]
[336862292,1725220256956,-500.0,0.00025479,2]
[336862293,1725220256967,-500.0,0.00025479,2]
[336862294,1725220256976,-623.88,0.00025479,2]
[336862295,1725220256986,-500.0,0.00025479,2]
[336862296,1725220256995,-500.0,0.00025479,2]
[336862297,1725220257005,-697.81,0.00025479,2]
[336862298,1725220257015,-500.0,0.00025479,2]
[336862299,1725220257029,-500.0,0.00025479,2]
[336862300,1725220257039,-500.0,0.00025479,2]
[336862301,1725220257048,-500.0,0.00025479,2]
[336862302,1725220257057,-500.0,0.00025479,2]
[336862303,1725220257068,-633.07,0.00025479,2]
[336862304,1725220257078,-511.25,0.00025479,2]
[336862305,1725220257087,-500.0,0.00025479,2]
[336862306,1725220257097,-500.0,0.00025479,2]
[336862307,1725220257108,-500.0,0.00025479,2]
[336862308,1725220257117,-500.0,0.00025479,2]
[336862309,1725220257128,-500.0,0.00025479,2]
[336862310,1725220257138,-500.0,0.00025479,2]
[336862311,1725220257147,-1066.22,0.00025479,2]
[336862312,1725220257156,-500.0,0.00025479,2]
[336862313,1725220257166,-500.0,0.00025479,2]
[336862314,1725220257175,-771.46,0.00025479,2]
[336862315,1725220257185,-500.0,0.00025479,2]
[336862316,1725220257194,-500.0,0.00025479,2]
[336862317,1725220257203,-2083.88,0.00025479,2]
[336862318,1725220257213,-500.0,0.00025479,2]
[336862319,1725220257222,-500.0,0.00025479,2]
[336862320,1725220257231,-1001.26,0.00025479,2]
[336862321,1725220257241,-1962.97,0.00025479,2]
[336862322,1725220257250,-500.0,0.00025479,2]
[336862323,1725220257261,-524.701115,0.00025479,7]
[336862324,1725220257272,-500.0,0.00025479,2]
[336862325,1725220257282,-1840.7,0.00025479,2]
[336862326,1725220257292,-524.701115,0.00025479,7]
[336862327,1725220257302,-871.97,0.00025479,2]
[336862328,1725220257311,-500.0,0.00025479,2]
[336862329,1725220257320,-500.0,0.00025479,2]
[336862330,1725220257330,-500.0,0.00025479,2]
[336862331,1725220257340,-849.13,0.00025479,2]
[336862332,1725220257349,-500.0,0.00025479,2]
[336862333,1725220257359,-500.0,0.00025479,2]
[336862334,1725220257369,-500.0,0.00025479,2]
[336862335,1725220257378,-3177.69,0.00025479,2]
[336862336,1725220257388,-1428.81,0.00025479,2]
[336862337,1725220257398,-14885.91,0.00025479,2]
[336862338,1725220257408,-828.65,0.00025479,2]
[336862339,1725220257418,-1491.3,0.00025479,2]
[336862340,1725220257428,-2404.41,0.00025479,2]
[336862341,1725220257437,-500.0,0.00025479,2]
[336862342,1725220257447,-1946.51,0.00025479,2]
[336862343,1725220257457,-1842.36,0.00025479,2]
[336862344,1725220257467,-558.16,0.00025479,2]
[336862345,1725220257477,-1792.23,0.00025479,2]
[336862346,1725220257487,-500.0,0.00025479,2]
[336862347,1725220257496,-2239.07,0.00025479,2]
[336862348,1725220257506,-500.0,0.00025479,2]
[336862349,1725220257515,-500.0,0.00025479,2]
[336862350,1725220257525,-500.0,0.00025479,2]
[336862351,1725220257535,-500.0,0.00025479,2]
[336862352,1725220257544,-500.0,0.00025479,2]
[336862353,1725220257553,-500.0,0.00025479,2]
[336862354,1725220257563,-2348.55,0.00025479,2]
[336862355,1725220257573,-500.0,0.00025479,2]
[336862356,1725220257582,-579.58,0.00025479,2]
[336862357,1725220257592,-500.0,0.00025479,2]
[336862358,1725220257601,-2982.3,0.00025479,2]
[336862359,1725220257612,-500.0,0.00025479,2]
[336862360,1725220257621,-596.63,0.00025479,2]
[336862361,1725220257631,-2997.01,0.00025479,2]
[336862362,1725220257641,-500.0,0.00025479,2]
[336862363,1725220257651,-500.0,0.00025479,2]
[336862364,1725220257662,-500.0,0.00025479,2]
[336862365,1725220257672,-500.0,0.00025479,2]
[336862366,1725220257682,-762.97,0.00025479,2]
[336862367,1725220257691,-500.0,0.00025479,2]
[336862368,1725220257701,-500.0,0.00025479,2]
[336862369,1725220257710,-703.69,0.00025479,2]
[336862370,1725220257720,-500.0,0.00025479,2]
[336862371,1725220257734,-1436.26,0.00025479,2]
[336862372,1725220257743,-500.0,0.00025479,2]
[336862373,1725220257753,-500.0,0.00025479,2]
[336862374,1725220257762,-720.27,0.00025479,2]
[336862375,1725220257772,-1538.09,0.00025479,2]
[336862376,1725220257781,-500.0,0.00025479,2]
[336862377,1725220257790,-658.62,0.00025479,2]
[336862378,1725220257801,-500.0,0.00025479,2]
[336862379,1725220257810,-296.42311592,0.00025479,2]
[336862380,1725220257820,-1749.24,0.00025479,2]
[336862381,1725220257829,-842.64,0.00025479,2]
[336862382,1725220257839,-228.912194,0.00025479,7]
[336862383,1725220257848,-412.68281981,0.00025479,2]
[336862384,1725220257858,-1648.2,0.00025479,2]
[336862385,1725220257867,-500.0,0.00025479,2]
[336862386,1725220257876,-646.27,0.00025479,2]
[336862387,1725220257887,-228.912194,0.00025479,7]
[336862388,1725220257897,-500.0,0.00025479,2]
[336862389,1725220257907,-500.0,0.00025479,2]
[336862390,1725220257916,-1503.88,0.00025479,2]
[336862391,1725220257926,-500.0,0.00025479,2]
[336862392,1725220257935,-500.0,0.00025479,2]
[336862393,1725220257944,-500.0,0.00025479,2]
[336862394,1725220257953,-500.0,0.00025479,2]
[336862395,1725220257963,-500.0,0.00025479,2]
[336862396,1725220257972,-678.43,0.00025479,2]
[336862397,1725220257982,-1088.52,0.00025479,2]
[336862398,1725220257992,-500.0,0.00025479,2]
[336862399,1725220258001,-1129.55,0.00025479,2]
[336862400,1725220258011,-500.0,0.00025479,2]
[336862401,1725220258021,-500.0,0.00025479,2]
[336862402,1725220258034,-500.0,0.00025479,2]
[336862403,1725220258045,-500.0,0.00025479,2]
[336862404,1725220258055,-500.0,0.00025479,2]
[336862405,1725220258065,-394.65511845,0.00025479,2]
[336862406,1725220258075,-1414.5,0.00025479,2]
[336862407,1725220258084,-500.0,0.00025479,2]
[336862408,1725220258094,-1766.48,0.00025479,2]
[336862409,1725220258106,-500.0,0.00025479,2]
[336862410,1725220258116,-258.2864906,0.00025479,2]
[336862411,1725220258126,-557.99,0.00025479,2]
[336862412,1725220258136,-748.97,0.00025479,2]
[336862413,1725220258145,-1804.34,0.00025479,2]
[336862414,1725220258154,-1624.73,0.00025479,2]
[336862415,1725220258164,-733.2,0.00025479,2]
[336862416,1725220258173,-1026.45,0.00025479,2]
[336862417,1725220258183,-500.0,0.00025479,2]
[336862418,1725220258193,-2634.53,0.00025479,2]
[336862419,1725220258202,-500.0,0.00025479,2]
[336862420,1725220258212,-500.0,0.00025479,2]
[336862421,1725220258221,-771.11,0.00025479,2]
[336862422,1725220258231,-1494.38,0.00025479,2]
[336862423,1725220258240,-500.0,0.00025479,2]
[336862424,1725220258250,-500.0,0.00025479,2]
[336862425,1725220258260,-500.0,0.00025479,2]
[336862426,1725220258270,-1766.03,0.00025479,2]
[336862427,1725220258279,-500.0,0.00025479,2]
[336862428,1725220258289,-500.0,0.00025479,2]
[336862429,1725220258298,-775.26,0.00025479,2]
[336862430,1725220258308,-1998.14,0.00025479,2]
[336862431,1725220258318,-500.0,0.00025479,2]
[336862432,1725220258328,-1186.35,0.00025479,2]
[336862433,1725220258337,-747.23,0.00025479,2]
[336862434,1725220258347,-795.14,0.00025479,2]
[336862435,1725220258356,-500.0,0.00025479,2]
[336862436,1725220258366,-500.0,0.00025479,2]
[336862437,1725220258375,-500.0,0.00025479,2]
[336862438,1725220258385,-1210.09,0.00025479,2]
[336862439,1725220258394,-500.0,0.00025479,2]
[336862440,1725220258403,-1485.31,0.00025479,2]
[336862441,1725220258413,-628.65773662,0.00025479,2]
[336862442,1725220258422,-500.0,0.00025479,2]
[336862443,1725220258431,-1290.25,0.00025479,2]
[336862444,1725220258440,-567.52,0.00025479,2]
[336862445,1725220258452,-500.0,0.00025479,2]
[336862446,1725220258462,-500.0,0.00025479,2]
[336862447,1725220258471,-500.0,0.00025479,2]
[336862448,1725220258480,-500.0,0.00025479,2]
[336862449,1725220258490,-6057.72,0.00025479,2]
[336862450,1725220258502,-500.0,0.00025479,2]
[336862451,1725220258512,-1327.14,0.00025479,2]
[336862452,1725220258522,-1503.87,0.00025479,2]
[336862453,1725220258532,-732.64,0.00025479,2]
[336862454,1725220258541,-1148.79,0.00025479,2]
[336862455,1725220258551,-500.0,0.00025479,2]
[336862456,1725220258561,-1772.48,0.00025479,2]
[336862457,1725220258570,-5201.79,0.000255,14]
[336862458,1725220258579,-150.112233,0.000255,5]
[336862459,1725220258588,-150.112233,0.000255,5]
[336862460,1725220258598,-153.21542783,0.00025545,7]
[336862461,1725220258607,-154.18279182,0.00025545,7]
[336862462,1725220258616,-150.112233,0.000256,10]
[336862463,1725220258626,-150.112233,0.000256,9]
[336862464,1725220258635,-150.112233,0.000257,5]
[336862465,1725220258644,-3530.40684816,0.00025743,3]
[336862466,1725220258654,-2286.57,0.00025752,2]
[336862467,1725220258663,-736.46,0.00025752,2]
[336862468,1725220258673,-1658.39,0.00025752,2]
[336862469,1725220258683,-1034.98,0.00025752,2]
[336862470,1725220258692,-828.02,0.00025752,2]
[336862471,1725220258701,-546.15,0.00025752,2]
[336862472,1725220258711,-7675.38,0.00025752,2]
[336862473,1725220258720,-1529.18,0.00025752,2]
[336862474,1725220258729,-678.33,0.00025752,2]
[336862475,1725220258739,-1741.29,0.00025752,2]
[336862476,1725220258748,-3271.16,0.00025752,2]
[336862477,1725220258758,-2206.77,0.00025752,2]
[336862478,1725220258767,-2327.32,0.00025752,2]
[336862479,1725220258777,-1374.59,0.00025752,2]
[336862480,1725220258786,-550.76,0.00025752,2]
[336862481,1725220258795,-370.25705107,0.00025753,2]
[336862482,1725220258805,-500.0,0.00025753,2]
[336862483,1725220258814,-500.0,0.00025753,2]
[336862484,1725220258823,-827.6,0.00025753,2]
[336862485,1725220258833,-500.0,0.00025753,2]
[336862486,1725220258842,-500.59,0.00025753,2]
[336862487,1725220258852,-500.0,0.00025753,2]
[336862488,1725220258862,-423.01607026,0.00025753,2]
[336862489,1725220258871,-500.0,0.00025753,2]
[336862490,1725220258881,-500.0,0.00025753,2]
[336862491,1725220258891,-500.0,0.00025753,2]
[336862492,1725220258900,-500.0,0.00025753,2]
[336862493,1725220258910,-1070.71,0.00025753,2]
[336862494,1725220258920,-583.3,0.00025753,2]
[336862495,1725220258929,-585.76,0.00025753,2]
[336862496,1725220258939,-500.0,0.00025753,2]
[336862497,1725220258948,-668.73,0.00025753,2]
[336862498,1725220258958,-500.0,0.00025753,2]
[336862499,1725220259002,-426.37308199,0.00025753,2]
[336862500,1725220259011,-521.09,0.00025753,2]
[336862501,1725220259021,-500.0,0.00025753,2]
[336862502,1725220259032,-1573.85,0.00025753,2]
[336862503,1725220259042,-515.89,0.00025753,2]
[336862504,1725220259052,-500.0,0.00025753,2]
[336862505,1725220259063,-541.22,0.00025753,2]
[336862506,1725220259073,-518.77241438,0.00025753,2]
[336862507,1725220259082,-500.0,0.00025753,2]
[336862508,1725220259092,-1024.3,0.00025753,2]
[336862509,1725220259103,-500.0,0.00025753,2]
[336862510,1725220259113,-776.53,0.00025753,2]
[336862511,1725220259123,-500.0,0.00025753,2]
[336862512,1725220259134,-597.29,0.00025753,2]
[336862513,1725220259144,-755.54,0.00025753,2]
[336862514,1725220259156,-704.21,0.00025753,2]
[336862515,1725220259165,-500.0,0.00025753,2]
[336862516,1725220259175,-500.0,0.00025753,2]
[336862517,1725220259184,-500.0,0.00025753,2]
[336862518,1725220259194,-500.0,0.00025753,2]
[336862519,1725220259205,-888.83,0.00025753,2]
[336862520,1725220259214,-500.0,0.00025753,2]
[336862521,1725220259223,-500.0,0.00025753,2]
[336862522,1725220259234,-578.31,0.00025753,2]
[336862523,1725220259244,-500.0,0.00025753,2]
[336862524,1725220259253,-765.48,0.00025753,2]
[336862525,1725220259264,-500.0,0.00025753,2]
[336862526,1725220259274,-500.0,0.00025753,2]
[336862527,1725220259284,-506.44796571,0.00025753,2]
[336862528,1725220259294,-3499.16,0.00025753,2]
[336862529,1725220259303,-500.0,0.00025753,2]
[336862530,1725220259313,-500.0,0.00025753,2]
[336862531,1725220259322,-500.0,0.00025753,2]
[336862532,1725220259331,-1189.99,0.00025753,2]
[336862533,1725220259341,-500.0,0.00025753,2]
[336862534,1725220259350,-408.79803057,0.00025753,2]
[336862535,1725220259360,-527.91,0.00025753,2]
[336862536,1725220259369,-500.0,0.00025753,2]
[336862537,1725220259379,-500.0,0.00025753,2]
[336862538,1725220259389,-500.0,0.00025753,2]
[336862539,1725220259398,-623.88,0.00025753,2]
[336862540,1725220259408,-500.0,0.00025753,2]
[336862541,1725220259417,-500.0,0.00025753,2]
[336862542,1725220259426,-697.81,0.00025753,2]
[336862543,1725220259435,-500.0,0.00025753,2]
[336862544,1725220259444,-443.53926504,0.00025753,2]
[336862545,1725220259453,-500.0,0.00025753,2]
[336862546,1725220259463,-500.0,0.00025753,2]
[336862547,1725220259473,-500.0,0.00025753,2]
[336862548,1725220259482,-633.07,0.00025753,2]
[336862549,1725220259491,-511.25,0.00025753,2]
[336862550,1725220259500,-500.0,0.00025753,2]
[336862551,1725220259509,-500.0,0.00025753,2]
[336862552,1725220259520,-500.0,0.00025753,2]
[336862553,1725220259529,-500.0,0.00025753,2]
[336862554,1725220259538,-529.85471772,0.00025753,2]
[336862555,1725220259547,-517.17463084,0.00025753,2]
[336862556,1725220259557,-1066.22,0.00025753,2]
[336862557,1725220259566,-500.0,0.00025753,2]
[336862558,1725220259575,-500.0,0.00025753,2]
[336862559,1725220259584,-771.46,0.00025753,2]
[336862560,1725220259593,-500.0,0.00025753,2]
[336862561,1725220259602,-500.0,0.00025753,2]
[336862562,1725220259612,-2083.88,0.00025753,2]
[336862563,1725220259621,-500.0,0.00025753,2]
[336862564,1725220259630,-500.0,0.00025753,2]
[336862565,1725220259640,-1001.26,0.00025753,2]
[336862566,1725220259649,-1962.97,0.00025753,2]
[336862567,1725220259661,-500.0,0.00025753,2]
[336862568,1725220259671,-151.0,0.00025753,7]
[336862569,1725220259680,-524.701115,0.00025753,7]
[336862570,1725220259689,-500.0,0.00025753,2]
[336862571,1725220259698,-1840.7,0.00025753,2]
[336862572,1725220259707,-151.0,0.00025753,7]
[336862573,1725220259716,-524.701115,0.00025753,7]
[336862574,1725220259725,-871.97,0.00025753,2]
[336862575,1725220259734,-500.0,0.00025753,2]
[336862576,1725220259743,-500.0,0.00025753,2]
[336862577,1725220259753,-500.0,0.00025753,2]
[336862578,1725220259762,-849.13,0.00025753,2]
[336862579,1725220259772,-500.0,0.00025753,2]
[336862580,1725220259781,-500.0,0.00025753,2]
[336862581,1725220259790,-500.0,0.00025753,2]
[336862582,1725220259799,-3177.69,0.00025753,2]
[336862583,1725220259808,-1428.81,0.00025753,2]
[336862584,1725220259817,-14885.91,0.00025753,2]
[336862585,1725220259826,-828.65,0.00025753,2]
[336862586,1725220259835,-1491.3,0.00025753,2]
[336862587,1725220259844,-2404.41,0.00025753,2]
[336862588,1725220259853,-525.9372745,0.00025753,2]
[336862589,1725220259862,-1946.51,0.00025753,2]
[336862590,1725220259871,-1842.36,0.00025753,2]
[336862591,1725220259881,-558.16,0.00025753,2]
[336862592,1725220259890,-1792.23,0.00025753,2]
[336862593,1725220259900,-500.0,0.00025753,2]
[336862594,1725220259908,-2239.07,0.00025753,2]
[336862595,1725220259918,-500.0,0.00025753,2]
[336862596,1725220259928,-500.0,0.00025753,2]
[336862597,1725220259937,-500.0,0.00025753,2]
[336862598,1725220259946,-500.0,0.00025753,2]
[336862599,1725220259955,-500.0,0.00025753,2]
[336862600,1725220259964,-500.0,0.00025753,2]
[336862601,1725220259974,-2348.55,0.00025753,2]
[336862602,1725220259983,-500.0,0.00025753,2]
[336862603,1725220259993,-579.58,0.00025753,2]
[336862604,1725220260002,-536.96617675,0.00025753,2]
[336862605,1725220260011,-2982.3,0.00025753,2]
[336862606,1725220260021,-500.0,0.00025753,2]
[336862607,1725220260032,-596.63,0.00025753,2]
[336862608,1725220260041,-2997.01,0.00025753,2]
[336862609,1725220260050,-500.0,0.00025753,2]
[336862610,1725220260060,-500.0,0.00025753,2]
[336862611,1725220260071,-500.0,0.00025753,2]
[336862612,1725220260081,-500.0,0.00025753,2]
[336862613,1725220260090,-762.97,0.00025753,2]
[336862614,1725220260100,-500.0,0.00025753,2]
[336862615,1725220260109,-500.0,0.00025753,2]
[336862616,1725220260119,-703.69,0.00025753,2]
[336862617,1725220260128,-500.0,0.00025753,2]
[336862618,1725220260146,-1436.26,0.00025753,2]
[336862619,1725220260156,-500.0,0.00025753,2]
[336862620,1725220260166,-500.0,0.00025753,2]
[336862621,1725220260175,-720.27,0.00025753,2]
[336862622,1725220260185,-1538.09,0.00025753,2]
[336862623,1725220260194,-658.62,0.00025753,2]
[336862624,1725220260204,-500.0,0.00025753,2]
[336862625,1725220260213,-1749.24,0.00025753,2]
[336862626,1725220260223,-842.64,0.00025753,2]
[336862627,1725220260232,-228.912194,0.00025753,7]
[336862628,1725220260242,-1648.2,0.00025753,2]
[336862629,1725220260251,-500.0,0.00025753,2]
[336862630,1725220260261,-646.27,0.00025753,2]
[336862631,1725220260271,-228.912194,0.00025753,7]
[336862632,1725220260282,-500.0,0.00025753,2]
[336862633,1725220260291,-500.0,0.00025753,2]
[336862634,1725220260301,-1503.88,0.00025753,2]
[336862635,1725220260311,-500.0,0.00025753,2]
[336862636,1725220260321,-500.0,0.00025753,2]
[336862637,1725220260331,-500.0,0.00025753,2]
[336862638,1725220260341,-606.30590256,0.00025753,2]
[336862639,1725220260350,-500.0,0.00025753,2]
[336862640,1725220260360,-678.43,0.00025753,2]
[336862641,1725220260369,-1088.52,0.00025753,2]
[336862642,1725220260379,-500.0,0.00025753,2]
[336862643,1725220260393,-1129.55,0.00025753,2]
[336862644,1725220260403,-500.0,0.00025753,2]
[336862645,1725220260412,-500.0,0.00025753,2]
[336862646,1725220260421,-513.91093587,0.00025753,2]
[336862647,1725220260430,-500.0,0.00025753,2]
[336862648,1725220260440,-500.0,0.00025753,2]
[336862649,1725220260451,-1414.5,0.00025753,2]
[336862650,1725220260462,-500.0,0.00025753,2]
[336862651,1725220260472,-1766.48,0.00025753,2]
[336862652,1725220260482,-500.0,0.00025753,2]
[336862653,1725220260492,-557.99,0.00025753,2]
[336862654,1725220260501,-748.97,0.00025753,2]
[336862655,1725220260511,-1804.34,0.00025753,2]
[336862656,1725220260521,-1624.73,0.00025753,2]
[336862657,1725220260530,-733.2,0.00025753,2]
[336862658,1725220260540,-1026.45,0.00025753,2]
[336862659,1725220260550,-2634.53,0.00025753,2]
[336862660,1725220260560,-500.0,0.00025753,2]
[336862661,1725220260570,-500.0,0.00025753,2]
[336862662,1725220260579,-771.11,0.00025753,2]
[336862663,1725220260589,-1494.38,0.00025753,2]
[336862664,1725220260599,-500.0,0.00025753,2]
[336862665,1725220260609,-500.0,0.00025753,2]
[336862666,1725220260618,-500.0,0.00025753,2]
[336862667,1725220260627,-1766.03,0.00025753,2]
[336862668,1725220260637,-500.0,0.00025753,2]
[336862669,1725220260647,-500.0,0.00025753,2]
[336862670,1725220260657,-775.26,0.00025753,2]
[336862671,1725220260667,-1998.14,0.00025753,2]
[336862672,1725220260678,-500.0,0.00025753,2]
[336862673,1725220260688,-1186.35,0.00025753,2]
[336862674,1725220260698,-747.23,0.00025753,2]
[336862675,1725220260708,-795.14,0.00025753,2]
[336862676,1725220260718,-500.0,0.00025753,2]
[336862677,1725220260727,-500.0,0.00025753,2]
[336862678,1725220260737,-500.0,0.00025753,2]
[336862679,1725220260746,-1210.09,0.00025753,2]
[336862680,1725220260756,-500.0,0.00025753,2]
[336862681,1725220260765,-1485.31,0.00025753,2]
[336862682,1725220260775,-1290.25,0.00025753,2]
[336862683,1725220260784,-567.52,0.00025753,2]
[336862684,1725220260794,-500.0,0.00025753,2]
[336862685,1725220260804,-500.0,0.00025753,2]
[336862686,1725220260814,-500.0,0.00025753,2]
[336862687,1725220260823,-6057.72,0.00025753,2]
[336862688,1725220260833,-1327.14,0.00025753,2]
[336862689,1725220260843,-1503.87,0.00025753,2]
[336862690,1725220260853,-732.64,0.00025753,2]
[336862691,1725220260863,-1148.79,0.00025753,2]
[336862692,1725220260873,-500.0,0.00025753,2]
[336862693,1725220260883,-1772.48,0.00025753,2]
[336862694,1725220260893,-1000.0,0.00025821,2]
[336862695,1725220260902,-171.0,0.0002589,2]
[336862696,1725220260913,-238.85687989,0.0002589,120]
[336862697,1725220260923,-390.6,0.00025953,3]
[336862698,1725220260933,-465.00739706,0.00025987,2]
[336862699,1725220260944,-420.0,0.00025995,2]
[336862700,1725220260954,-1000.0,0.00026,26]
[336862701,1725220260964,-154.0915253,0.00026019,2]
[336862702,1725220260974,-210.26411071,0.00026021,2]
[336862703,1725220260984,-2286.57,0.00026026,2]
[336862704,1725220260994,-736.46,0.00026026,2]
[336862705,1725220261004,-1658.39,0.00026026,2]
[336862706,1725220261015,-1034.98,0.00026026,2]